bitfinex/quotes_ETHUSD_20250126
["timestamp","ask_amount","ask_price","bid_price","bid_amount"]
[1737924508466,2.99868,3334.8,3334.4,0.05096373]
[1737924508959,2.99852,3335.0,3334.4,0.05096373]
[1737924511140,3.79185,3335.2,3334.6,2.99877]
[1737924511340,2.99835,3335.2,3334.6,2.99877]
[1737924511661,2.99835,3335.2,3334.8,0.8092]
[1737924512171,2.99835,3335.2,3334.9,0.05095584]
[1737924512767,2.99835,3335.2,3335.0,0.05094591]
[1737924513262,2.99835,3335.2,3334.8,0.8092]
[1737924513566,2.99835,3335.2,3335.1,0.05094591]
[1737924513742,2.99835,3335.2,3334.8,0.8092]
[1737924513946,2.99835,3335.2,3335.1,0.05094591]
[1737924514137,2.99835,3335.2,3334.8,0.8092]
[1737924514467,2.99835,3335.2,3335.1,0.05094591]
[1737924514666,2.99835,3335.2,3334.8,0.8092]
[1737924514868,2.99835,3335.2,3334.9,0.05094591]
[1737924515027,9.02508,3335.4,3334.9,0.05094591]
[1737924515367,5.25,3335.4,3335.2,0.7737]
[1737924515566,0.7685,3335.7,3335.2,0.7737]
[1737924515567,2.99792,3335.7,3335.2,0.7737]
[1737924515768,2.99779,3335.8,3335.2,3.772]
[1737924515969,2.99779,3335.8,3335.3,0.05094591]
[1737924516365,0.7685,3335.9,3335.3,0.05094591]
[1737924516576,2.99767,3336.0,3335.4,2.99813]
[1737924516755,3.76596,3336.2,3335.6,0.7737]
[1737924516957,4.442282,3336.2,3335.6,0.7737]
[1737924517280,4.442282,3336.2,3335.7,0.05066649]
[1737924517447,7.439792,3336.2,3335.7,0.05066649]
[1737924518079,4.442282,3336.2,3335.7,0.05066649]
[1737924518664,3.76577,3336.4,3335.7,3.04850649]
[1737924518975,2.99727,3336.4,3335.9,2.99768]
[1737924519180,3.76562,3336.6,3335.9,2.99768]
[1737924519377,0.7685,3336.6,3335.9,2.99768]
[1737924519580,0.7685,3336.6,3336.0,0.05066649]
[1737924519784,2.99702,3336.7,3336.1,3.77119]
[1737924520082,2.99702,3336.7,3336.0,0.05066649]
[1737924520083,2.99751,3336.1,3336.0,0.05066649]
[1737924520257,2.99762,3336.0,3335.4,0.7737]
[1737924520648,2.9977,3335.9,3335.4,0.7737]
[1737924521180,2.9977,3335.9,3335.4,3.77183]
[1737924521376,3.76601,3336.1,3335.4,3.77183]
[1737924524691,3.76601,3336.1,3335.5,0.0496821]
[1737924525895,3.76601,3336.1,3335.5,3.0477221]
[1737924526057,2.99751,3336.1,3335.5,3.0477221]
[1737924531724,3.24631,3336.1,3335.5,3.0477221]
[1737924533517,3.24631,3336.1,3335.5,0.0496821]
[1737924533693,2.99763,3336.0,3335.5,0.0496821]
[1737924534912,0.2488,3336.1,3335.5,0.0496821]
[1737924534913,3.24632,3336.1,3335.5,3.0477021]
[1737924538420,3.949807,3336.1,3335.5,3.0477021]
[1737924539129,2.9976,3336.0,3335.5,3.0477021]
[1737924540325,0.952287,3336.1,3335.5,0.0496821]
[1737924540326,2.99789,3335.7,3335.5,0.0496821]
[1737924540923,2.99796,3335.6,3335.5,0.0496821]
[1737924541099,2.99796,3335.6,3335.1,0.7708]
[1737924541304,2.99815,3335.4,3334.8,3.7694]
[1737924541504,2.99815,3335.4,3335.2,0.04867244]
[1737924541723,2.99815,3335.4,3334.8,3.7694]
[1737924541948,2.99815,3335.4,3335.3,0.04867244]
[1737924542099,2.99815,3335.4,3334.8,3.7694]
[1737924542298,2.99796,3335.6,3335.4,0.7708]
[1737924542817,2.99796,3335.6,3335.5,0.04874861]
[1737924544650,2.99796,3335.6,3335.2,0.7844]
[1737924544975,2.99796,3335.6,3335.3,0.0488974]
[1737924545347,2.99796,3335.6,3334.9,3.78291]
[1737924545656,2.99796,3335.6,3335.4,0.0488875]
[1737924545826,2.99796,3335.6,3334.9,3.78291]
[1737924545827,0.599576,3335.5,3334.9,3.78291]
[1737924546026,2.99796,3335.6,3335.5,0.0488875]
[1737924546257,2.99796,3335.6,3334.9,3.78291]
[1737924546477,2.99796,3335.6,3335.5,0.0488875]
[1737924547082,2.99796,3335.6,3334.9,3.78291]
[1737924547287,2.99796,3335.6,3335.0,0.04725792]
[1737924550561,2.99796,3335.6,3335.0,3.04572792]
[1737924560508,0.7923,3335.9,3335.1,0.827]
[1737924560717,0.7923,3335.9,3335.4,2.99811]
[1737924561410,0.7923,3335.9,3335.5,0.04730365]
[1737924562085,3.24631,3336.1,3335.5,3.87233365]
[1737924562457,3.24631,3336.1,3335.5,3.82503]
[1737924562657,3.24631,3336.1,3335.6,0.04730365]
[1737924563206,3.77111,3335.9,3335.6,0.04730365]
[1737924563700,3.77111,3335.9,3335.3,2.99819]
[1737924563905,2.99778,3335.8,3335.7,0.04730365]
[1737924564111,3.77528,3335.8,3335.7,0.04730365]
[1737924564306,3.77564,3335.4,3334.9,3.82636]
[1737924564761,3.77564,3335.4,3335.0,0.04692303]
[1737924566688,2.99831,3335.3,3335.0,0.04692303]
[1737924566894,2.99831,3335.3,3334.4,3.0]
[1737924567161,2.99831,3335.3,3334.8,2.99867]
[1737924567809,2.99831,3335.3,3334.9,0.04555189]
[1737924568064,2.99831,3335.3,3334.8,2.99867]
[1737924568474,2.99831,3335.3,3334.9,0.04555189]
[1737924568679,2.99831,3335.3,3334.6,3.0]
[1737924568680,2.99831,3335.3,3334.6,5.99882]
[1737924568883,2.99831,3335.3,3334.7,0.04555189]
[1737924570188,3.77688,3334.8,3334.7,0.04555189]
[1737924570390,2.99887,3334.6,3334.0,2.99936]
[1737924570588,0.7782,3334.5,3334.0,2.99936]
[1737924574655,0.7782,3334.5,3334.1,0.04251706]
[1737924578242,3.77717,3334.5,3334.1,0.04251706]
[1737924578634,3.77717,3334.5,3333.9,3.75756]
[1737924578816,3.77717,3334.5,3334.2,0.04251706]
[1737924579020,3.77717,3334.5,3333.9,3.75756]
[1737924579218,3.77717,3334.5,3334.3,0.04251706]
[1737924579421,3.77717,3334.5,3333.9,3.75756]
[1737924579622,3.77717,3334.5,3334.4,0.04251706]
[1737924580148,3.77717,3334.5,3333.9,3.75756]
[1737924580397,3.77717,3334.5,3334.4,0.04251706]
[1737924580512,3.77717,3334.5,3333.9,3.75756]
[1737924580712,3.77717,3334.5,3334.0,0.04251706]
[1737924582020,2.99904,3334.4,3334.0,0.04251706]
[1737924584337,3.79461,3334.1,3334.0,0.04251706]
[1737924584739,3.79461,3334.1,3333.4,6.75802]
[1737924584939,3.79461,3334.1,3334.0,0.04251706]
[1737924585141,3.79461,3334.1,3333.4,6.75802]
[1737924585330,0.7953,3334.1,3334.0,0.04251706]
[1737924585528,3.7945,3334.3,3333.6,2.99975]
[1737924585823,3.7945,3334.3,3334.0,0.04300982]
[1737924586028,3.7945,3334.3,3333.8,0.7581]
[1737924586227,3.7945,3334.3,3334.1,0.04300982]
[1737924586427,3.7945,3334.3,3333.8,0.7581]
[1737924586943,3.7945,3334.3,3333.9,0.04300982]
[1737924592070,2.99923,3334.2,3333.9,0.04300982]
[1737924592449,2.99923,3334.2,3333.5,6.75431]
[1737924592650,2.99923,3334.2,3334.0,0.04356356]
[1737924592847,2.99923,3334.2,3333.5,6.75431]
[1737924593345,2.99923,3334.2,3333.6,0.04356356]
[1737924593550,2.99923,3334.2,3333.6,3.04328356]
[1737924601086,2.99923,3334.2,3333.6,0.04356356]
[1737924603962,2.99934,3334.1,3333.6,0.04356356]
[1737924604463,3.7945,3334.3,3333.6,3.04325356]
[1737924604664,2.99924,3334.2,3333.6,3.04325356]
[1737924606596,2.99924,3334.2,3333.7,2.99965]
[1737924606802,3.79443,3334.3,3333.7,2.99965]
[1737924606996,3.79443,3334.3,3333.8,0.04363473]
[1737924607501,3.79443,3334.3,3333.7,2.99965]
[1737924607802,3.79443,3334.3,3333.8,2.99957]
[1737924608103,3.79443,3334.3,3333.8,3.04324029]
[1737924608601,2.99871,3334.8,3333.9,0.7581]
[1737924608800,3.81195,3334.7,3334.0,2.99934]
[1737924609192,3.81195,3334.7,3334.1,3.04295029]
[1737924610431,8.24859,3334.9,3334.3,2.99907]
[1737924610902,8.24859,3334.9,3334.4,0.04360931]
[1737924611305,2.99859,3334.9,3334.4,3.04263931]
[1737924611807,2.99843,3335.1,3334.5,0.7581]
[1737924612186,2.99843,3335.1,3334.6,0.04354326]
[1737924612800,2.99861,3334.9,3334.6,0.04354326]
[1737924613471,2.99877,3334.7,3334.2,0.7581]
[1737924613677,3.375197,3334.6,3334.2,0.7581]
[1737924613894,2.99886,3334.6,3334.2,0.7581]
[1737924614509,2.99877,3334.7,3334.3,0.04343148]
[1737924614510,2.999,3334.5,3334.3,0.04343148]
[1737924614716,2.999,3334.5,3333.9,8.30941]
[1737924614886,2.999,3334.5,3334.0,0.04340608]
[1737924615772,2.999,3334.5,3334.0,3.04278608]
[1737924620574,2.999,3334.5,3334.0,0.04340608]
[1737924621668,5.99803,3334.5,3334.0,0.04340608]
[1737924621848,2.99915,3334.3,3334.0,0.04340608]
[1737924622163,2.9993,3334.2,3333.6,3.0]
[1737924623060,2.9993,3334.2,3333.7,0.0433349]
[1737924627202,3.53312326,3334.2,3333.7,0.0433349]
[1737924627376,2.99933,3334.1,3333.7,0.0433349]
[1737924627559,2.99933,3334.1,3333.5,3.75787]
[1737924627760,3.53312326,3334.2,3333.6,0.04214729]
[1737924629305,3.53312326,3334.2,3333.6,3.04187729]
[1737924629452,2.9993,3334.2,3333.6,3.04187729]
[1737924630492,2.99916,3334.3,3333.7,2.99966]
[1737924630994,2.99916,3334.3,3333.8,0.04070476]
[1737924631357,3.76365,3334.4,3333.7,2.99966]
[1737924631588,3.76365,3334.4,3333.8,0.04070476]
[1737924631798,0.676252,3334.3,3333.8,0.04070476]
[1737924632173,3.675392,3334.3,3333.7,2.99966]
[1737924632500,3.675392,3334.3,3333.9,0.0794414]
[1737924632660,3.675392,3334.3,3333.8,0.07947692]
[1737924632970,3.675392,3334.3,3333.9,0.07947692]
[1737924633481,3.675392,3334.3,3333.7,2.99966]
[1737924633682,3.675392,3334.3,3334.0,0.07947692]
[1737924633993,0.4439992,3334.2,3334.1,0.07947692]
[1737924634797,0.4439992,3334.2,3333.7,2.99966]
[1737924634955,2.99914,3334.3,3334.1,0.07947692]
[1737924635151,2.99914,3334.3,3333.7,2.99966]
[1737924635381,2.99914,3334.3,3333.8,0.07947692]
[1737924635789,2.99914,3334.3,3333.7,2.99966]
[1737924635956,2.99914,3334.3,3333.9,0.07947692]
[1737924636172,2.99914,3334.3,3333.7,2.99966]
[1737924636173,3.675411,3334.3,3333.7,2.99966]
[1737924636384,3.675411,3334.3,3334.0,0.07947692]
[1737924636586,3.675411,3334.3,3333.7,2.99966]
[1737924636927,3.675411,3334.3,3334.1,0.07947692]
[1737924637057,3.675411,3334.3,3333.7,2.99966]
[1737924637258,2.99914,3334.3,3334.2,0.07947692]
[1737924637759,2.99914,3334.3,3333.7,2.99966]
[1737924637994,2.99914,3334.3,3333.8,0.07947692]
[1737924638399,2.99914,3334.3,3333.7,2.99966]
[1737924638694,2.99923,3334.2,3333.9,0.07947692]
[1737924638862,1.436997,3334.1,3333.5,3.75787]
[1737924639056,3.76001,3334.1,3333.5,3.75787]
[1737924639273,3.76001,3334.1,3333.6,0.07947692]
[1737924649482,2.99941,3334.0,3333.6,0.07947692]
[1737924650566,2.99913,3334.3,3333.6,0.07947692]
[1737924650773,3.79437,3333.7,3333.1,3.00019]
[1737924650982,3.79437,3333.7,3333.2,0.07711084]
[1737924651884,2.99976,3333.6,3333.2,0.07711084]
[1737924652254,2.99976,3333.6,3332.9,6.75848]
[1737924652440,2.99976,3333.6,3333.3,0.07476786]
[1737924652642,2.99976,3333.6,3332.9,6.75848]
[1737924652643,3.679166,3333.6,3332.9,6.75848]
[1737924653002,2.99976,3333.6,3332.9,6.75848]
[1737924653476,2.99976,3333.6,3333.0,0.07476786]
[1737924654869,3.78451,3333.5,3333.0,0.07476786]
[1737924655043,3.78451,3333.5,3332.9,3.00036]
[1737924655244,3.78451,3333.5,3333.1,0.07476786]
[1737924655470,3.78451,3333.5,3332.9,3.00036]
[1737924655671,3.78451,3333.5,3333.2,0.07476786]
[1737924655906,4.36840899,3333.5,3332.9,3.00036]
[1737924656109,3.78451,3333.5,3333.3,0.07476786]
[1737924656305,3.78451,3333.5,3332.9,3.00036]
[1737924656513,3.78451,3333.5,3333.4,0.07476786]
[1737924656709,3.78451,3333.5,3332.9,3.00036]
[1737924656895,3.78451,3333.5,3333.4,0.07476786]
[1737924657220,4.462937,3333.5,3333.4,0.07476786]
[1737924657418,4.462937,3333.5,3332.9,3.00036]
[1737924657624,3.78451,3333.5,3333.4,0.07476786]
[1737924657917,3.78451,3333.5,3332.9,3.00036]
[1737924658121,3.78451,3333.5,3333.4,0.07476786]
[1737924658321,3.78451,3333.5,3332.4,3.75226]
[1737924658322,3.00026,3333.1,3332.4,3.75226]
[1737924658487,3.78496,3333.0,3332.5,3.00073]
[1737924658820,3.78496,3333.0,3332.4,3.75226]
[1737924659736,3.78496,3333.0,3332.5,0.07348596]
[1737924660741,0.7846,3333.0,3332.5,0.07348596]
[1737924661029,0.7846,3333.0,3332.5,3.07420596]
[1737924662508,3.7849,3333.0,3332.5,3.07420596]
[1737924662921,3.7849,3333.0,3332.5,0.07348596]
[1737924665309,3.00066,3332.6,3332.5,0.07348596]
[1737924665518,3.00056,3332.8,3331.6,0.7581]
[1737924665519,0.7782,3332.5,3331.6,0.7581]
[1737924665774,3.00113,3332.1,3331.4,3.00166]
[1737924666060,3.77941,3332.0,3331.4,3.00166]
[1737924666237,3.0013,3331.9,3331.5,0.07134293]
[1737924666611,0.7782,3332.0,3331.4,3.00166]
[1737924666947,0.7782,3332.0,3331.6,0.07178318]
[1737924667146,0.7782,3332.0,3331.4,3.00166]
[1737924667304,0.7782,3332.0,3331.7,0.07178318]
[1737924667512,1.156133,3332.0,3331.4,3.00166]
[1737924667821,0.7782,3332.0,3331.4,3.00166]
[1737924668028,0.7782,3332.0,3331.3,0.7581]
[1737924668029,0.7766,3332.2,3331.5,0.07008787]
[1737924668235,0.7766,3332.5,3331.9,3.00123]
[1737924668622,3.00086,3332.4,3331.7,3.0014]
[1737924668836,3.00086,3332.4,3332.0,0.07008787]
[1737924669033,3.00086,3332.4,3331.7,3.0014]
[1737924669303,3.00086,3332.4,3332.1,0.07008787]
[1737924669504,3.00086,3332.4,3331.8,3.00137]
[1737924669721,3.00086,3332.4,3332.2,0.07008787]
[1737924669921,0.4680186,3332.3,3331.8,3.00137]
[1737924670121,3.00086,3332.4,3331.8,3.00137]
[1737924670357,0.7766,3332.2,3331.6,3.00152]
[1737924670510,0.7766,3332.2,3331.4,3.00167]
[1737924670710,3.00121,3332.0,3331.4,3.00167]
[1737924671254,3.00121,3332.0,3331.3,3.75989]
[1737924671558,3.77769,3332.2,3331.5,3.00163]
[1737924671761,4.455546,3332.2,3331.5,3.00163]
[1737924673458,0.7766,3332.5,3331.9,3.75933]
[1737924673660,0.7766,3332.5,3332.1,3.00107]
[1737924674746,0.7766,3332.5,3332.2,0.07008787]
[1737924676043,0.7766,3332.5,3332.0,3.00119]
[1737924676254,0.7766,3332.5,3332.3,0.07008787]
[1737924676418,0.7766,3332.5,3332.0,3.00119]
[1737924676624,0.7766,3332.5,3332.4,0.07008787]
[1737924676825,0.7766,3332.5,3332.0,3.00119]
[1737924677039,0.7766,3332.5,3332.4,0.07008787]
[1737924677238,0.7766,3332.5,3332.0,3.00119]
[1737924677469,9.00197,3332.7,3332.4,0.07008787]
[1737924677628,10.202207,3332.7,3332.1,3.00108]
[1737924677827,3.00068,3332.6,3332.5,0.07008787]
[1737924678029,3.00068,3332.6,3332.1,3.00108]
[1737924678269,3.00068,3332.6,3332.5,0.06995133]
[1737924678474,3.00068,3332.6,3332.1,3.00108]
[1737924678675,4.3209687,3332.6,3332.5,0.06995133]
[1737924678857,3.00081,3332.5,3331.9,3.75933]
[1737924679058,0.7514,3332.4,3331.9,3.00123]
[1737924680856,3.00081,3332.5,3332.0,3.00118]
[1737924681261,3.00081,3332.5,3331.9,3.00123]
[1737924681568,3.75208,3332.6,3331.9,3.00123]
[1737924681775,4.952347,3332.6,3331.9,3.00123]
[1737924682254,3.00076,3332.5,3331.9,3.00123]
[1737924683059,1.951667,3332.6,3332.0,0.7581]
[1737924683360,0.7514,3332.6,3332.0,3.75926]
[1737924684292,0.7514,3332.6,3332.0,0.7581]
[1737924684471,5.25,3332.7,3332.2,3.00095]
[1737924685699,3.00048,3332.8,3332.2,3.00095]
[1737924687722,0.7818,3333.1,3332.7,3.00051]
[1737924687921,3.00005,3333.3,3332.7,3.75861]
[1737924688235,3.300051,3333.3,3332.7,3.75861]
[1737924688409,3.00005,3333.3,3332.7,3.75861]
[1737924689731,3.00005,3333.3,3332.8,3.07016855]
[1737924690300,3.00005,3333.3,3332.8,3.07014855]
[1737924691207,3.00005,3333.3,3332.8,0.06969855]
[1737924691414,3.00005,3333.3,3332.7,3.75861]
[1737924691613,3.00005,3333.3,3332.8,0.06969855]
[1737924691940,3.00005,3333.3,3332.7,3.75861]
[1737924692103,3.00005,3333.3,3332.9,0.06969855]
[1737924692435,0.7818,3333.4,3333.0,0.06969855]
[1737924692935,8.2495,3333.9,3332.9,3.00033]
[1737924692936,0.7835,3333.7,3332.9,3.00033]
[1737924693125,2.99986,3333.5,3333.1,0.06969855]
[1737924693330,2.99986,3333.5,3333.0,0.06935485]
[1737924693557,2.99986,3333.5,3332.9,6.00063]
[1737924693736,2.99986,3333.5,3333.1,0.06935485]
[1737924693938,2.99986,3333.5,3332.9,6.00063]
[1737924694138,2.99986,3333.5,3333.2,0.06935485]
[1737924694337,2.99986,3333.5,3332.9,6.00063]
[1737924694849,2.99986,3333.5,3333.0,0.06935485]
[1737924697386,3.78325,3333.7,3333.0,0.06935485]
[1737924697678,3.78325,3333.7,3333.0,3.06957485]
[1737924698877,2.99977,3333.6,3333.0,3.06957485]
[1737924699578,2.99986,3333.5,3333.0,3.06957485]
[1737924700585,2.99986,3333.5,3333.0,0.06935485]
[1737924700980,3.00026,3333.1,3332.7,0.7581]
[1737924701166,3.00026,3333.1,3332.5,6.75879]
[1737924702289,3.00026,3333.1,3332.6,3.00064]
[1737924704493,3.76784,3333.3,3332.6,3.00064]
[1737924704694,3.76784,3333.3,3332.7,0.06910719]
[1737924704896,0.376784,3333.2,3332.7,0.06910719]
[1737924705294,3.376914,3333.2,3332.7,0.06910719]
[1737924706304,3.76784,3333.3,3332.7,3.06961719]
[1737924708502,3.76659386,3333.5,3332.8,3.75852]
[1737924708703,2.99994,3333.4,3332.8,3.82780914]
[1737924711010,3.00006,3333.3,3332.8,0.82738914]
[1737924711212,3.00012,3333.2,3332.8,0.82738914]
[1737924711907,3.83042,3333.2,3332.8,0.06928914]
[1737924712272,3.83042,3333.2,3332.7,3.00051]
[1737924712517,3.83042,3333.2,3332.9,0.06928914]
[1737924712689,3.83042,3333.2,3332.7,3.00051]
[1737924712889,3.83042,3333.2,3333.0,0.06928914]
[1737924713089,3.83042,3333.2,3332.7,3.00051]
[1737924713285,3.83042,3333.2,3333.1,0.06928914]
[1737924713490,4.58112324,3333.2,3332.7,3.00051]
[1737924713788,3.83042,3333.2,3332.7,3.00051]
[1737924714315,3.83042,3333.2,3332.8,0.06928914]
[1737924714512,3.83042,3333.2,3332.7,3.00051]
[1737924714724,3.83042,3333.2,3332.9,0.06928914]
[1737924714891,3.83042,3333.2,3332.7,3.00051]
[1737924715091,3.83042,3333.2,3333.0,0.06930934]
[1737924715276,3.83042,3333.2,3332.7,3.00051]
[1737924715473,3.83042,3333.2,3333.1,0.06930934]
[1737924715677,3.83042,3333.2,3332.7,3.00051]
[1737924715948,3.83042,3333.2,3333.1,0.06930934]
[1737924716116,3.83042,3333.2,3332.7,3.00051]
[1737924716319,3.83042,3333.2,3333.1,0.06930934]
[1737924716519,4.513456,3333.2,3332.7,3.00051]
[1737924716728,3.83042,3333.2,3333.1,0.06930934]
[1737924716931,3.83042,3333.2,3332.7,3.00051]
[1737924717086,3.83042,3333.2,3333.1,0.06930934]
[1737924717424,3.83042,3333.2,3332.7,3.00051]
[1737924717583,3.83042,3333.2,3333.1,0.06930934]
[1737924717914,4.513456,3333.2,3333.1,0.06930934]
[1737924718125,4.513456,3333.2,3332.5,0.7581]
[1737924718286,3.83078,3332.8,3332.3,3.0]
[1737924718814,3.83078,3332.8,3332.3,6.00092]
[1737924719516,3.00067,3332.6,3332.0,5.31]
[1737924719733,3.00067,3332.6,3331.9,3.00128]
[1737924719734,3.0008,3332.5,3332.4,0.06701852]
[1737924719934,3.0008,3332.5,3331.9,3.00128]
[1737924720120,3.0008,3332.5,3332.4,0.06702119]
[1737924720321,0.8303,3332.4,3331.9,3.00128]
[1737924721446,3.8312,3332.4,3331.8,0.7581]
[1737924721751,3.8312,3332.4,3331.8,3.75945]
[1737924723917,3.8312,3332.4,3331.9,3.00127]
[1737924724125,0.8303,3332.4,3331.9,3.00127]
[1737924732439,3.83121,3332.4,3331.8,0.7581]
[1737924732639,3.00099,3332.3,3331.8,0.7581]
[1737924733009,3.00099,3332.3,3331.8,3.75945]
[1737924734131,3.00099,3332.3,3331.8,3.00135]
[1737924734741,3.00099,3332.3,3331.9,0.06734932]
[1737924739631,3.00099,3332.3,3331.5,3.75971]
[1737924740143,3.00099,3332.3,3331.6,0.06771785]
[1737924740348,3.00099,3332.3,3331.7,3.00144]
[1737924740924,3.00099,3332.3,3331.8,0.06771785]
[1737924741325,3.00099,3332.3,3331.7,3.00144]
[1737924741524,3.00099,3332.3,3331.9,0.06771785]
[1737924741851,3.00099,3332.3,3331.7,3.00144]
[1737924742349,3.00099,3332.3,3331.8,0.06771785]
[1737924742721,3.00099,3332.3,3331.7,3.00144]
[1737924742919,3.00099,3332.3,3331.9,0.06771785]
[1737924743120,3.00099,3332.3,3331.7,3.00144]
[1737924743320,3.00099,3332.3,3332.0,0.06771785]
[1737924743553,3.00099,3332.3,3331.7,3.00144]
[1737924743754,3.00099,3332.3,3332.1,0.06771785]
[1737924743958,3.00099,3332.3,3331.7,3.00144]
[1737924744145,3.00099,3332.3,3332.2,0.06771785]
[1737924744345,3.00099,3332.3,3331.7,3.00144]
[1737924744545,3.00099,3332.3,3332.2,0.06771785]
[1737924744745,3.00099,3332.3,3331.7,3.00144]
[1737924744947,3.00099,3332.3,3332.2,0.06771785]
[1737924745256,3.00099,3332.3,3331.7,3.00144]
[1737924745634,3.00099,3332.3,3331.8,0.06775825]
[1737924746024,3.00099,3332.3,3331.7,3.00144]
[1737924746224,3.00099,3332.3,3331.9,0.06775825]
[1737924746427,3.00099,3332.3,3331.7,3.00144]
[1737924746933,3.00099,3332.3,3331.8,0.06775825]
[1737924747134,3.00099,3332.3,3331.7,3.00144]
[1737924747320,3.00099,3332.3,3331.9,0.06775825]
[1737924747520,3.00099,3332.3,3331.7,3.00144]
[1737924747721,3.00099,3332.3,3332.0,0.06775825]
[1737924747921,3.00099,3332.3,3331.7,3.00144]
[1737924748121,3.00099,3332.3,3332.1,0.06775825]
[1737924748425,3.00099,3332.3,3331.7,3.00144]
[1737924748647,3.00099,3332.3,3332.2,0.06775825]
[1737924749159,3.00099,3332.3,3331.7,3.00144]
[1737924749360,3.00099,3332.3,3332.2,0.06775825]
[1737924749562,3.00099,3332.3,3331.7,3.00144]
[1737924749768,3.00099,3332.3,3332.2,0.06775825]
[1737924749971,3.00099,3332.3,3331.7,3.00144]
[1737924750176,3.00099,3332.3,3332.2,0.06775825]
[1737924750377,3.684194,3332.3,3331.7,3.00144]
[1737924750577,3.00099,3332.3,3332.2,0.06775825]
[1737924751277,3.00111,3332.1,3331.5,3.75971]
[1737924752880,0.8298,3332.0,3331.5,3.75971]
[1737924753511,0.8298,3332.0,3331.6,3.00155]
[1737924753666,0.8298,3332.0,3331.5,3.75971]
[1737924754165,0.8298,3332.0,3331.5,3.75969]
[1737924758190,0.8298,3332.0,3331.7,3.00146]
[1737924758951,0.8298,3332.0,3331.6,3.00154]
[1737924759592,3.83107,3332.0,3331.3,3.00179]
[1737924759782,3.83107,3332.0,3331.0,6.75337]
[1737924759783,3.00149,3331.7,3331.0,6.75337]
[1737924759979,0.8298,3331.6,3331.0,6.75337]
[1737924760384,0.8298,3331.6,3331.0,3.75337]
[1737924764806,0.8298,3331.6,3331.1,0.0578906]
[1737924765710,3.83137,3331.6,3331.1,0.0578906]
[1737924769420,3.83137,3331.6,3331.1,3.0599006]
[1737924774247,3.83137,3331.6,3331.1,0.0578906]
[1737924774398,0.8298,3331.6,3331.1,0.0578906]
[1737924774598,0.807,3331.5,3330.8,6.00226]
[1737924774798,0.807,3331.5,3331.2,0.0578906]
[1737924775112,0.807,3331.5,3330.8,6.00226]
[1737924775435,0.807,3331.5,3331.3,0.0578906]
[1737924775646,3.0018,3331.4,3330.8,6.00226]
[1737924777099,0.807,3331.3,3330.8,6.00226]
[1737924779942,0.807,3331.3,3330.9,0.0580668]
[1737924780150,0.807,3331.3,3330.9,3.0602268]
[1737924780844,0.807,3331.3,3330.9,0.0580668]
[1737924781618,3.80884,3331.3,3330.9,0.0580668]
[1737924782031,3.80884,3331.3,3330.7,3.00234]
[1737924782204,3.80884,3331.3,3331.0,0.0580668]
[1737924782535,3.80884,3331.3,3330.7,3.00234]
[1737924782701,3.80884,3331.3,3331.1,0.0580668]
[1737924782906,3.80884,3331.3,3330.7,3.00234]
[1737924783101,3.80884,3331.3,3331.2,0.05824801]
[1737924783327,4.189724,3331.3,3330.6,3.0]
[1737924783668,0.807,3331.3,3331.2,0.05828325]
[1737924783822,0.807,3331.3,3330.8,3.00225]
[1737924784360,0.807,3331.3,3330.9,0.05639149]
[1737924787155,5.25,3332.2,3331.2,3.00192]
[1737924787156,0.8208,3331.6,3331.2,3.00192]
[1737924787654,0.8208,3331.6,3331.3,0.05639149]
[1737924789854,0.8208,3331.6,3331.2,3.00192]
[1737924790374,0.8208,3331.6,3331.3,0.05605012]
[1737924790719,0.525,3332.1,3331.2,3.00192]
[1737924790923,6.8323,3332.0,3331.4,3.00168]
[1737924791154,3.83102,3332.0,3331.4,3.00168]
[1737924791361,3.83102,3332.0,3331.5,0.05602046]
[1737924791974,3.0013,3331.9,3331.5,0.05602046]
[1737924793560,0.8298,3331.6,3331.0,0.7581]
[1737924793788,3.83139,3331.6,3331.1,3.00199]
[1737924794602,3.83139,3331.6,3331.0,0.7581]
[1737924794762,3.83139,3331.6,3331.2,0.05580953]
[1737924794961,3.83139,3331.6,3331.0,0.7581]
[1737924795210,3.83139,3331.6,3331.3,0.05580953]
[1737924795415,3.83139,3331.6,3331.0,0.7581]
[1737924795579,3.83139,3331.6,3331.4,0.05580953]
[1737924795780,3.83139,3331.6,3331.0,0.7581]
[1737924795992,3.83139,3331.6,3331.5,0.05580953]
[1737924796197,3.83139,3331.6,3331.0,0.7581]
[1737924796409,3.83139,3331.6,3331.5,0.05580953]
[1737924796627,3.83139,3331.6,3331.0,0.7581]
[1737924796809,3.83139,3331.6,3331.5,0.05580953]
[1737924797118,3.83139,3331.6,3331.0,0.7581]
[1737924797681,3.83139,3331.6,3331.1,0.05580953]
[1737924802838,0.8298,3331.6,3331.1,0.05580953]
[1737924803137,3.00172,3331.5,3331.1,0.05580953]
[1737924806586,3.00172,3331.5,3330.9,3.00218]
[1737924806760,3.00172,3331.5,3331.2,0.05591073]
[1737924806961,3.00172,3331.5,3330.9,3.00218]
[1737924807162,3.00172,3331.5,3331.3,0.05591073]
[1737924807480,3.00172,3331.5,3330.9,3.00218]
[1737924807682,3.00172,3331.5,3331.4,0.05591073]
[1737924808171,3.00172,3331.5,3330.9,3.00218]
[1737924808373,3.00172,3331.5,3331.4,0.0559057]
[1737924808575,3.68502,3331.5,3330.9,3.00218]
[1737924808883,3.00172,3331.5,3331.4,0.0559057]
[1737924809046,3.00172,3331.5,3330.9,3.00218]
[1737924809246,3.00172,3331.5,3331.4,0.0559057]
[1737924809457,3.00172,3331.5,3330.9,3.00218]
[1737924809666,3.00172,3331.5,3331.4,0.0559057]
[1737924809867,3.00197,3331.2,3330.6,3.0]
[1737924810078,3.00197,3331.2,3330.6,3.00243]
[1737924810284,0.7834,3331.1,3330.7,0.0559057]
[1737924811671,3.78547,3331.1,3330.7,0.0559057]